fUST/lending_fUST_20250729
["ID","MTS","AMOUNT","RATE_DAILY","PERIOD"]
[375919900,1753783876002,-460.0,0.00021095,2]
[375919901,1753783876013,-460.0,0.00021095,2]
[375919902,1753783876023,-341.37658691,0.00021095,2]
[375919903,1753783876033,-460.0,0.00021095,2]
[375919904,1753783876043,-460.0,0.00021095,2]
[375919905,1753783876054,-2896.6,0.00021095,2]
[375919906,1753783876064,-699.26,0.00021095,2]
[375919907,1753783876073,-460.0,0.00021095,2]
[375919908,1753783876083,-460.0,0.00021095,2]
[375919909,1753783876094,-460.0,0.00021095,2]
[375919910,1753783876104,-421.51160832,0.00021095,2]
[375919911,1753783876113,-630.99,0.00021095,2]
[375919912,1753783876124,-460.0,0.00021095,2]
[375919913,1753783876134,-460.0,0.00021095,2]
[375919914,1753783876144,-460.0,0.00021095,2]
[375919915,1753783876154,-474.9,0.00021095,2]
[375919916,1753783876164,-460.0,0.00021095,2]
[375919917,1753783876173,-575.890876,0.00021095,2]
[375919918,1753783876183,-746.43,0.00021095,2]
[375919919,1753783876193,-575.890876,0.00021095,2]
[375919920,1753783876202,-460.0,0.00021095,2]
[375919921,1753783876211,-460.0,0.00021095,2]
[375919922,1753783876221,-460.0,0.00021095,2]
[375919923,1753783876231,-151.0,0.00021095,2]
[375919924,1753783876241,-480.13,0.00021095,2]
[375919925,1753783876250,-460.0,0.00021095,2]
[375919926,1753783876259,-460.0,0.00021095,2]
[375919927,1753783876269,-460.0,0.00021095,2]
[375919928,1753783876279,-460.0,0.00021095,2]
[375919929,1753783876288,-155.79617446,0.00021095,2]
[375919930,1753783876297,-460.0,0.00021095,2]
[375919931,1753783876307,-460.0,0.00021095,2]
[375919932,1753783876316,-533.45,0.00021095,2]
[375919933,1753783876325,-612.42,0.00021095,2]
[375919934,1753783876335,-463.79140177,0.00021095,2]
[375919935,1753783876344,-1374.84,0.00021095,2]
[375919936,1753783876353,-184.32857246,0.00021095,2]
[375919937,1753783876363,-460.0,0.00021095,2]
[375919938,1753783876372,-1048.05,0.00021095,2]
[375919939,1753783876381,-460.0,0.00021095,2]
[375919940,1753783876391,-460.0,0.00021095,2]
[375919941,1753783876400,-3098.65,0.00021095,2]
[375919942,1753783876409,-460.0,0.00021095,2]
[375919943,1753783876419,-460.0,0.00021095,2]
[375919944,1753783876428,-460.0,0.00021095,2]
[375919945,1753783876437,-460.0,0.00021095,2]
[375919946,1753783876447,-9691.1,0.00021095,2]
[375919947,1753783876456,-460.0,0.00021095,2]
[375919948,1753783876466,-629.2,0.00021095,2]
[375919949,1753783876476,-460.0,0.00021095,2]
[375919950,1753783876485,-8482.62,0.00021095,2]
[375919951,1753783876495,-549.29,0.00021095,2]
[375919952,1753783876504,-289.758156,0.00021095,2]
[375919953,1753783876514,-460.0,0.00021095,2]
[375919954,1753783876523,-1078.37,0.00021095,2]
[375919955,1753783876532,-318.21718956,0.00021095,2]
[375919956,1753783876543,-460.0,0.00021095,2]
[375919957,1753783876554,-460.0,0.00021095,2]
[375919958,1753783876568,-460.0,0.00021095,2]
[375919959,1753783876581,-636.63,0.00021095,2]
[375919960,1753783876591,-460.0,0.00021095,2]
[375919961,1753783876602,-460.0,0.00021095,2]
[375919962,1753783876612,-460.0,0.00021095,2]
[375919963,1753783876622,-460.0,0.00021095,2]
[375919964,1753783876631,-460.0,0.00021095,2]
[375919965,1753783876640,-1309.75,0.00021095,2]
[375919966,1753783876650,-460.0,0.00021095,2]
[375919967,1753783876660,-460.0,0.00021095,2]
[375919968,1753783876670,-460.0,0.00021095,2]
[375919969,1753783876691,-3451.62,0.00021095,2]
[375919970,1753783876701,-4669.88,0.00021095,2]
[375919971,1753783876711,-460.0,0.00021095,2]
[375919972,1753783876721,-460.0,0.00021095,2]
[375919973,1753783876731,-460.0,0.00021095,2]
[375919974,1753783876740,-155.667427,0.00021095,2]
[375919975,1753783876754,-460.0,0.00021095,2]
[375919976,1753783876765,-460.0,0.00021095,2]
[375919977,1753783876774,-460.0,0.00021095,2]
[375919978,1753783876783,-2598.43,0.00021095,2]
[375919979,1753783876792,-460.0,0.00021095,2]
[375919980,1753783876803,-721.04,0.00021095,2]
[375919981,1753783876813,-460.0,0.00021095,2]
[375919982,1753783876823,-460.0,0.00021095,2]
[375919983,1753783876834,-460.0,0.00021095,2]
[375919984,1753783876844,-780.2,0.00021095,2]
[375919985,1753783876853,-2181.94,0.00021095,2]
[375919986,1753783876863,-460.0,0.00021095,2]
[375919987,1753783876871,-2840.9,0.00021095,2]
[375919988,1753783876881,-811.38,0.00021095,2]
[375919989,1753783876890,-460.0,0.00021095,2]
[375919990,1753783876899,-939.56,0.00021095,2]
[375919991,1753783876908,-460.0,0.00021095,2]
[375919992,1753783876917,-460.0,0.00021095,2]
[375919993,1753783876927,-496.39,0.00021095,2]
[375919994,1753783876936,-1185.45,0.00021095,2]
[375919995,1753783876945,-460.0,0.00021095,2]
[375919996,1753783876954,-460.0,0.00021095,2]
[375919997,1753783876963,-460.0,0.00021095,2]
[375919998,1753783876973,-475.53,0.00021095,2]
[375919999,1753783876982,-1580.91,0.00021095,2]
[375920000,1753783876991,-460.0,0.00021095,2]
[375920001,1753783877000,-838.44,0.00021095,2]
[375920002,1753783877009,-460.0,0.00021095,2]
[375920003,1753783877020,-151.0,0.00021095,2]
[375920004,1753783877030,-460.0,0.00021095,2]
[375920005,1753783877040,-460.0,0.00021095,2]
[375920006,1753783877049,-154.08155407,0.00021095,2]
[375920007,1753783877083,-585.85964783,0.00020821,2]
[375920008,1753783877095,-477.88035217,0.00020821,2]
[375920009,1753783877105,-305.91844593,0.00021095,2]
[375920010,1753783877115,-919.13,0.00021095,2]
[375920011,1753783877124,-151.0,0.00021095,2]
[375920012,1753783877134,-151.0,0.00021095,2]
[375920013,1753783877143,-4042.77,0.00021095,2]
[375920014,1753783877154,-480.07,0.00021095,2]
[375920015,1753783877163,-460.0,0.00021095,2]
[375920016,1753783877173,-155.0,0.00021095,2]
[375920017,1753783877182,-268.00910152,0.00021095,2]
[375920018,1753783877222,-191.99089848,0.00021095,2]
[375920019,1753783877232,-460.0,0.00021095,2]
[375920020,1753783877242,-373.93858146,0.00021095,2]
[375920021,1753783877392,-249.993024,0.00019178,2]
[375920022,1753783877579,-0.00618458,0.00019178,2]
[375920023,1753783877868,-210.00079142,0.00019178,2]
[375920024,1753783877878,-460.0,0.00019178,2]
[375920025,1753783877887,-460.0,0.00019178,2]
[375920026,1753783877896,-460.0,0.00019178,2]
[375920027,1753783877906,-460.0,0.00019452,2]
[375920028,1753783877915,-460.0,0.00019452,2]
[375920029,1753783877926,-460.0,0.00019452,2]
[375920030,1753783877938,-789.26,0.00019726,2]
[375920031,1753783877948,-460.0,0.00019726,2]
[375920032,1753783877958,-460.0,0.00019726,2]
[375920033,1753783877967,-1320.39,0.0002,2]
[375920034,1753783877977,-789.26,0.0002,2]
[375920035,1753783877986,-460.0,0.0002,2]
[375920036,1753783877996,-1320.39,0.00020273,2]
[375920037,1753783878006,-789.26,0.00020273,2]
[375920038,1753783878016,-460.0,0.00020273,2]
[375920039,1753783878026,-1320.39,0.00020547,2]
[375920040,1753783878036,-789.26,0.00020547,2]
[375920041,1753783878046,-460.0,0.00020547,2]
[375920042,1753783878055,-1320.39,0.00020821,2]
[375920043,1753783878065,-789.26,0.00020821,2]
[375920044,1753783878074,-460.0,0.00020821,2]
[375920045,1753783878084,-187.50141854,0.00021095,2]
[375920046,1753783878094,-460.0,0.00021095,2]
[375920047,1753783878104,-1387.53,0.00021095,2]
[375920048,1753783878115,-460.0,0.00021095,2]
[375920049,1753783878125,-524.76,0.00021095,2]
[375920050,1753783878134,-494.38,0.00021095,2]
[375920051,1753783878143,-460.0,0.00021095,2]
[375920052,1753783878153,-460.0,0.00021095,2]
[375920053,1753783878163,-460.0,0.00021095,2]
[375920054,1753783878172,-1167.89,0.00021095,2]
[375920055,1753783878182,-460.0,0.00021095,2]
[375920056,1753783878192,-460.0,0.00021095,2]
[375920057,1753783878202,-708.15,0.00021095,2]
[375920058,1753783878211,-460.0,0.00021095,2]
[375920059,1753783878221,-460.0,0.00021095,2]
[375920060,1753783878231,-192.23348051,0.00021095,2]
[375920061,1753783878361,-460.0,0.00019178,2]
[375920062,1753783878370,-460.0,0.0002,2]
[375920063,1753783878380,-460.0,0.00020273,2]
[375920064,1753783878390,-72.02646849,0.00021095,2]
[375920065,1753783878400,-3585.74,0.00021095,2]
[375920066,1753783878409,-460.0,0.00021095,2]
[375920067,1753783878418,-2682.74,0.00021095,2]
[375920068,1753783878428,-264.259949,0.00021095,2]
[375920069,1753783878438,-460.0,0.00021095,2]
[375920070,1753783878448,-749.01,0.00021095,2]
[375920071,1753783878458,-460.0,0.00021095,2]
[375920072,1753783878468,-460.0,0.00021095,2]
[375920073,1753783878477,-1571.099643,0.00021095,2]
[375920074,1753783878487,-464.3775728,0.00021095,2]
[375920075,1753783878496,-2891.35,0.00021095,2]
[375920076,1753783878505,-1571.099643,0.00021095,2]
[375920077,1753783878515,-460.0,0.00021095,2]
[375920078,1753783878524,-460.0,0.00021095,2]
[375920079,1753783878533,-970.09,0.00021095,2]
[375920080,1753783878542,-460.0,0.00021095,2]
[375920081,1753783878552,-502.49,0.00021095,2]
[375920082,1753783878562,-460.0,0.00021095,2]
[375920083,1753783878571,-460.0,0.00021095,2]
[375920084,1753783878580,-460.0,0.00021095,2]
[375920085,1753783878589,-460.0,0.00021095,2]
[375920086,1753783878598,-460.0,0.00021095,2]
[375920087,1753783878609,-1131.72,0.00021095,2]
[375920088,1753783878619,-774.25,0.00021095,2]
[375920089,1753783878629,-2479.4,0.00021095,2]
[375920090,1753783878638,-460.0,0.00021095,2]
[375920091,1753783878647,-1333.14,0.00021095,2]
[375920092,1753783878656,-834.95,0.00021095,2]
[375920093,1753783878666,-460.0,0.00021095,2]
[375920094,1753783878675,-685.3,0.00021095,2]
[375920095,1753783878685,-460.0,0.00021095,2]
[375920096,1753783878695,-1063.74,0.00021095,2]
[375920097,1753783878705,-1320.39,0.00021095,2]
[375920098,1753783878714,-789.26,0.00021095,2]
[375920099,1753783878724,-810.23382741,0.00021107,4]
[375920100,1753783878734,-1454.1428963,0.00021116,2]
[375920101,1753783890901,1980.15780387,0.00018478,2]
[375920102,1753783890924,20000.0,0.00018478,2]
[375920103,1753783890945,20000.0,0.00018478,2]
[375920104,1753783890967,20000.0,0.00018478,2]
[375920105,1753783890988,20000.0,0.00018478,2]
[375920106,1753783891010,20000.0,0.00018478,2]
[375920107,1753783891034,20000.0,0.00018478,2]
[375920108,1753783891056,20000.0,0.00018478,2]
[375920109,1753783891078,20000.0,0.00018478,2]
[375920110,1753783891100,20000.0,0.00018478,2]
[375920111,1753783891123,20000.0,0.00018478,2]
[375920112,1753783891145,20000.0,0.00018478,2]
[375920113,1753783891166,20000.0,0.00018478,2]
[375920114,1753783891189,20000.0,0.00018478,2]
[375920115,1753783891211,20000.0,0.00018478,2]
[375920116,1753783891233,20000.0,0.00018478,2]
[375920117,1753783891255,20000.0,0.00018478,2]
[375920118,1753783891276,20000.0,0.00018478,2]
[375920119,1753783891300,20000.0,0.00018478,2]
[375920120,1753783891321,8019.84219613,0.00018478,2]
[375920121,1753783901906,5000.0,0.0001851,2]
[375920122,1753783923049,-194.67326809,0.00018576,2]
[375920123,1753784030452,6980.15780387,0.00018478,2]
[375920124,1753784030476,20000.0,0.00018478,2]
[375920125,1753784030498,20000.0,0.00018478,2]
[375920126,1753784030521,20000.0,0.00018478,2]
[375920127,1753784030544,20000.0,0.00018478,2]
[375920128,1753784030566,20000.0,0.00018478,2]
[375920129,1753784030589,20000.0,0.00018478,2]
[375920130,1753784030612,20000.0,0.00018478,2]
[375920131,1753784030634,20000.0,0.00018478,2]
[375920132,1753784030662,20000.0,0.00018478,2]
[375920133,1753784030684,20000.0,0.00018478,2]
[375920134,1753784030711,20000.0,0.00018478,2]
[375920135,1753784030735,20000.0,0.00018478,2]
[375920136,1753784030757,20000.0,0.00018478,2]
[375920137,1753784030780,20000.0,0.00018478,2]
[375920138,1753784030806,20000.0,0.00018478,2]
[375920139,1753784030828,20000.0,0.00018478,2]
[375920140,1753784030851,20000.0,0.00018478,2]
[375920141,1753784030873,20000.0,0.00018478,2]
[375920142,1753784030897,3019.84219613,0.00018478,2]
[375920143,1753784040149,5000.0,0.0001851,2]
[375920144,1753784048607,5000.0,0.0001851,2]
[375920145,1753784058581,5000.0,0.0001851,2]
[375920146,1753784068269,1980.15780387,0.0001851,2]
[375920147,1753784068292,3019.84219613,0.0001851,2]
[375920148,1753784078569,5000.0,0.0001851,2]
[375920149,1753784088134,5000.0,0.0001851,2]
[375920150,1753784096663,5000.0,0.0001851,2]
[375920151,1753784106228,1980.15780387,0.0001851,2]
[375920152,1753784106250,3019.84219613,0.0001851,2]
[375920153,1753784114913,5000.0,0.0001851,2]
[375920154,1753784120391,1015.95381777,0.0001851,2]
[375920155,1753784121659,507.97690888,0.0001851,2]
[375920156,1753784123708,253.98845444,0.0001851,2]
[375920157,1753784124652,253.98845444,0.0001851,2]
[375920158,1753784124674,234.3032393,0.0001851,2]
[375920159,1753784134627,5000.0,0.0001851,2]
[375920160,1753784154818,4967.93538348,0.0001851,2]
[375920161,1753784154844,32.06461652,0.0001851,2]
[375920162,1753784173494,5000.0,0.0001851,2]
[375920163,1753784175362,801.646474,0.00018275,2]
[375920164,1753784175809,409.55111574,0.00018333,2]
[375920165,1753784183274,157.46788711,7.2e-07,2]
[375920166,1753784191276,5000.0,0.0001851,2]
[375920167,1753784210213,5000.0,0.0001851,2]
[375920170,1753784228049,3599.26990663,0.0001851,2]
[375920171,1753784228073,1400.73009337,0.0001851,2]
[375920172,1753784248913,5000.0,0.0001851,2]
[375920173,1753784265772,5000.0,0.0001851,2]
[375920174,1753784284046,5000.0,0.0001851,2]
[375920175,1753784285200,406.911718,0.00018055,2]
[375920177,1753784301417,3192.35818863,0.0001851,2]
[375920178,1753784301441,1807.64181137,0.0001851,2]
[375920179,1753784318522,5000.0,0.0001851,2]
[375920181,1753784329155,284.124353,0.00013699,2]
[375920182,1753784335645,5000.0,0.0001851,2]
[375920183,1753784339563,3000.0,0.00026027,120]
[375920184,1753784339803,253.98845444,0.0001851,2]
[375920185,1753784352745,5000.0,0.0001851,2]
[375920186,1753784370480,2654.24538119,0.0001851,2]
[375920187,1753784370503,2345.75461881,0.0001851,2]
[375920188,1753784388040,5000.0,0.0001851,2]
[375920189,1753784404746,5000.0,0.0001851,2]
[375920190,1753784417195,-1532.9381443,0.0001884,2]
[375920191,1753784417220,-1101.3176902,0.000189,2]
[375920192,1753784417241,-302.72757545,0.000189,2]
[375920193,1753784417262,-1379.21770509,0.00018989,2]
[375920194,1753784417285,-155.0,0.00019041,3]
[375920195,1753784417306,-17909.79888496,0.0001905,2]
[375920196,1753784420356,7654.24538119,0.00018105,2]
[375920197,1753784420549,829.13409671,0.00018105,2]
[375920199,1753784429616,171.819234,0.00018225,2]
[375920200,1753784429809,171.819234,0.00018225,120]
[375920201,1753784450264,18999.04666929,0.00018077,2]
[375920202,1753784450287,5900.95333071,0.00018077,2]
[375920203,1753784475169,150.0,0.00019185,30]
[375920204,1753784476072,150.0,0.00019653,30]
[375920205,1753784476510,150.0,0.00020121,30]
[375920206,1753784477420,482.28601804,0.00018317,2]
[375920207,1753784477486,150.0,0.00020589,30]
[375920208,1753784477989,150.0,0.00021057,30]
[375920209,1753784483991,157.21464905,7.2e-07,2]
[375920210,1753784484118,157.21464905,7.2e-07,2]
[375920211,1753784484233,157.21464905,7.2e-07,2]
[375920212,1753784484380,157.21464905,7.2e-07,2]
[375920213,1753784484466,157.21464905,7.2e-07,2]
[375920214,1753784484566,157.21464905,7.2e-07,2]
[375920215,1753784484663,157.21464905,7.2e-07,2]
[375920216,1753784484788,157.21464905,7.2e-07,2]
[375920217,1753784484890,157.21464905,7.2e-07,2]
[375920218,1753784558075,150.0,0.00019115,30]
[375920219,1753784558557,150.0,0.00019581,30]
[375920220,1753784559504,150.0,0.00020047,30]
[375920223,1753784636494,10025.6979165,0.00018093,2]
[375920224,1753784636923,150.0,0.00019205,30]
[375920225,1753784637356,150.0,0.00019673,30]
[375920226,1753784657289,7578.38037151,0.00018027,2]
[375920227,1753784657311,2180.04674149,0.00018027,2]
[375920231,1753784711601,433.4646687,0.0001803,2]
[375920232,1753784719492,150.0,0.00018811,30]
[375920237,1753784779806,961.5801028,0.00018133,2]
[375920238,1753784780284,278.012849,0.00018317,2]
[375920239,1753784781027,170.10026,0.00018333,2]
[375920240,1753784781577,256.7334969,0.00018408,2]
[375920243,1753784810603,5000.0,0.00018501,2]
[375920244,1753784828677,5000.0,0.00018501,2]
[375920245,1753784845463,5000.0,0.00018501,2]
[375920246,1753784860017,10720.06188111,0.00018049,2]
[375920247,1753784860043,15878.58132879,0.00018049,2]
[375920248,1753784863131,5000.0,0.00018501,2]
[375920249,1753784869852,9121.41867121,0.00018,2]
[375920250,1753784869875,1661.78233316,0.00018,2]
[375920251,1753784880741,5000.0,0.00018501,2]
[375920252,1753784898516,5000.0,0.00018501,2]
[375920253,1753784903898,1832.87351459,0.000176,2]
[375920254,1753784913489,16505.34415225,0.00017,2]
[375920255,1753784913513,30000.0,0.00017,2]
[375920256,1753784913537,30000.0,0.00017,2]
[375920257,1753784913560,12118.00200391,0.00017,2]
[375920258,1753784915657,181.61420491,0.00018501,2]
[375920259,1753784916230,4526.97800279,0.00018,2]
[375920260,1753784917266,-2208.46,0.00018501,2]
[375920261,1753784917574,580.92613002,0.000149,2]
[375920262,1753784917699,1000.0,0.0001,2]
[375920263,1753784918386,1685.98649261,0.00018,2]
[375920264,1753784919528,-460.0,0.00018501,2]
[375920265,1753784921860,210.82646288,0.00016,2]
[375920266,1753784922601,-577.22460865,0.0001843,2]
[375920267,1753784923156,481.30587256,0.0001,2]
[375920268,1753784923180,16865.3492817,0.0001,2]
[375920269,1753784925903,-80.76949742,0.0001843,2]
[375920270,1753784925926,-99.23050258,0.00018501,2]
[375920271,1753784928001,-460.0,0.00018501,2]
[375920272,1753784931404,-384.68341842,0.00018501,2]
[375920273,1753784935236,-183.75905393,0.00018501,2]
[375920277,1753784939885,-1022.25282016,0.00018501,2]
[375920455,1753785038913,-5000.0,0.00018588,2]
[375920457,1753785038923,-197.87053435,0.00018676,2]
[375920459,1753785038932,-491.35884446,0.00018776,2]
[375920461,1753785038942,-160.0,0.00018883,2]
[375920463,1753785038951,-734.21179346,0.000189,2]
[375920465,1753785038960,-302.72757545,0.000189,2]
[375920467,1753785038969,-1200.0,0.00018973,2]
[375920469,1753785038978,-313.90436731,0.00018974,2]
[375920471,1753785038993,-685.09124,0.00018974,2]
[375920473,1753785039005,-207.81988467,0.00018974,2]
[375920475,1753785039013,-180.51271281,0.00018974,2]
[375920477,1753785039022,-300.0,0.00018998,2]
[375920479,1753785039031,-67.55715422,0.00018999,2]
[375920482,1753785039042,-232.44284578,0.00018999,2]
[375920484,1753785039051,-300.0,0.00018999,2]
[375920486,1753785039060,-230.82692735,0.00019,20]
[375920488,1753785039071,-3465.31817973,0.00019,20]
[375920495,1753785039130,-1728.70202159,0.00019,20]
[375920497,1753785039139,-180.5127128,0.00019022,2]
[375920499,1753785039148,-554374.93189138,0.0001905,2]
[375920735,1753785040754,-295.425,0.0001905,2]
[375920946,1753785043834,-592.73,0.0001905,2]
[375920953,1753785043890,-7229.20857642,0.0001905,2]
[375921384,1753785083996,-569.93364702,0.00018294,2]
[375921385,1753785085013,-163.17976251,0.00018495,2]
[375921388,1753785181875,1031.0,0.00023,30]
[375921389,1753785237744,-210.51901578,0.0001831,2]
[375921390,1753785241282,-561.34565889,0.0001831,2]
[375921391,1753785246780,-264.11152,0.0001831,2]
[375921392,1753785249197,-464.10324285,0.0001831,2]
[375921393,1753785252479,-302.2731533,0.0001831,2]
[375921394,1753785254661,-622.11,0.0001831,2]
[375921395,1753785256420,-460.0,0.0001831,2]
[375921396,1753785258483,-460.0,0.0001831,2]
[375921397,1753785261274,-460.0,0.0001831,2]
[375921398,1753785263476,-460.0,0.0001831,2]
[375921399,1753785265775,-213.61,0.0001831,2]
[375921400,1753785269199,-300.0,0.0001831,2]
[375921401,1753785272643,-221.92740918,0.0001831,2]
[375921402,1753785272665,-95.00826938,0.00018396,2]
[375921403,1753785278329,-61.46379172,0.00018396,2]
[375921404,1753785278352,-80.39435949,0.00018495,2]
[375921405,1753785278372,-163.17976251,0.00018496,2]
[375921406,1753785323513,150.0,0.00019862,30]
[375921407,1753785364602,754.576698,0.00018062,2]
[375921408,1753785399135,2874.0348339,0.00018041,2]
[375921409,1753785476538,5000.0,0.00018101,2]
[375921425,1753785496270,5000.0,0.00018101,2]
[375921426,1753785513357,5000.0,0.00018101,2]
[375921427,1753785531132,4506.0391864,0.00018101,2]
[375921428,1753785531154,493.9608136,0.00018101,2]
[375921429,1753785532320,-179.2586344,0.0001815,2]
[375921430,1753785548965,-999.00345188,0.00018513,2]
[375921431,1753785553247,-160.0,0.00018513,2]
[375921432,1753785557798,-161.733103,0.00018513,2]
[375921433,1753785557832,150.0,0.00020145,30]
[375921434,1753785560991,-1500000.0,0.00026202,20]
[375921435,1753785562486,-460.0,0.00018513,2]
[375921436,1753785564693,-161.733103,0.00018513,2]
[375921437,1753785567238,-611.0,0.00018513,2]
[375921438,1753785570608,-460.0,0.00018513,2]
[375921439,1753785573517,-345.96034847,0.00018513,2]
[375921440,1753785578912,-460.0,0.00018513,2]
[375921441,1753785581716,-165.8876789,0.00018513,2]
[375921442,1753785583243,-354.03965153,0.00018513,2]
[375921443,1753785586051,-300.0,0.00018513,2]
[375921444,1753785587898,-300.0,0.00018513,2]
[375921445,1753785591896,-60.64266322,0.00018513,2]
[375921446,1753785602837,-239.35733678,0.00018513,2]
[375921447,1753785606238,-240.0,0.00018513,2]
[375921451,1753785739352,-222.99295668,0.00018512,2]
[375921452,1753785744864,6000.0,0.00017891,2]
[375921453,1753785744887,18900.0,0.00017891,2]
[375921454,1753785776467,7089.7253989,0.00017885,2]
[375921455,1753785797090,150.0,0.0002019,30]
[375921457,1753785859652,584.212775,0.00013699,2]
[375921459,1753785867705,3898.2566198,0.00017891,2]
[375921460,1753785873052,150.0,0.00020192,30]
[375921465,1753785954000,150.0,0.00020209,30]
[375921469,1753785990795,196.75236332,0.00017777,2]
[375921470,1753785993746,5000.0,0.00018101,2]
[375921474,1753786113816,-160.00002789,0.00018328,2]
[375921475,1753786114450,-162.19058,0.00018328,2]
[375921476,1753786115046,-391.40055185,0.00018328,2]
[375921477,1753786115661,-242.94246465,0.00018328,2]
[375921479,1753786201531,3837.09202938,0.00018101,2]
[375921480,1753786201554,1162.90797062,0.00018101,2]
[375921518,1753786232091,-1257.578978,0.00018328,2]
[375921520,1753786232104,-3742.421022,0.00018328,2]
[375921522,1753786232113,-1528.83164573,0.00018513,2]
[375921524,1753786232123,-422.25194611,0.00018812,2]
[375921526,1753786232133,-151.0,0.00018843,2]
[375921528,1753786232142,-1200.0,0.00018844,2]
[375921530,1753786232152,-354.22259142,0.00018845,2]
[375921531,1753786232163,-355.72495,0.00018845,2]
[375921534,1753786232386,-214.28957323,0.00018845,2]
[375921535,1753786232397,-242.19003319,0.00018867,2]
[375921536,1753786232411,-1083.09884428,0.00018867,2]
[375921537,1753786232420,-57.47895458,0.00018898,2]
[375921538,1753786232431,-1142.52104542,0.00018898,2]
[375921539,1753786232442,-6284.85969589,0.00018899,2]
[375921564,1753786237959,-3577.34769013,0.00018709,2]
[375921566,1753786237969,-43715.14030411,0.00018899,2]
[375921568,1753786237978,-300.0,0.00018899,2]
[375921570,1753786237987,-300.0,0.00018899,2]
[375921572,1753786237997,-300.0,0.00018899,2]
[375921574,1753786238006,-300.0,0.00018899,2]
[375921576,1753786238016,-764.41582287,0.00018899,2]
[375921578,1753786238026,-302.72757545,0.000189,2]
[375921580,1753786238036,-615.28213627,0.000189,2]
[375921582,1753786238046,-500.0,0.00018967,2]
[375921584,1753786238057,-2030.296672,0.00018967,2]
[375921586,1753786238066,-312.46,0.00018968,3]
[375921588,1753786238075,-156.23,0.00018968,3]
[375921590,1753786238085,-468.7,0.00018968,3]
[375921592,1753786238094,-780.77,0.00018968,3]
[375921594,1753786238104,-193.2431822,0.00018977,2]
[375921596,1753786238113,-500.0,0.00018977,2]
[375921598,1753786238122,-500.0,0.00018977,2]
[375921600,1753786238131,-500.0,0.00018977,2]
[375921602,1753786238141,-625.63278326,0.00018977,2]
[375921604,1753786238150,-500.0,0.00018977,2]
[375921606,1753786238159,-500.0,0.00018977,2]
[375921609,1753786238179,-324.06477488,0.00018977,2]
[375921611,1753786238189,-500.0,0.00018977,2]
[375921613,1753786238199,-332.05934388,0.00018977,2]
[375921615,1753786238209,-500.0,0.00018977,2]
[375921617,1753786238218,-500.0,0.00018977,2]
[375921619,1753786238228,-500.0,0.00018977,2]
[375921621,1753786238238,-500.0,0.00018977,2]
[375921623,1753786238248,-500.0,0.00018977,2]
[375921625,1753786238257,-500.0,0.00018977,2]
[375921627,1753786238267,-500.0,0.00018977,2]
[375921629,1753786238277,-188.421865,0.00018977,2]
[375921631,1753786238287,-500.0,0.00018977,2]
[375921633,1753786238296,-500.0,0.00018977,2]
[375921635,1753786238306,-500.0,0.00018977,2]
[375921637,1753786238317,-500.0,0.00018977,2]
[375921639,1753786238327,-500.0,0.00018977,2]
[375921641,1753786238337,-500.0,0.00018977,2]
[375921643,1753786238347,-500.0,0.00018977,2]